[Event "Titled Tuesday Blitz May 16 Late 2023"]
[White "Alex_Sahakyan2006"]
[Black "Babazada, Khazar"]
[BlackFideId "13413554"]
[WhiteElo "2704"]
[BlackElo "2351"]
[Result "1-0"]
[Round "07"]
[TimeControl "180+2"]
[Date "2023.05.16"]
[WhiteClock "0:00:05"]
[BlackClock "0:00:02"]

1. d4 {[%clk 0:03:00]}  Nf6 {[%clk 0:02:52]} 2. Nf3 {[%clk 0:03:00]}  e6 {[%clk 0:02:49]} 3. Bf4 {[%clk 0:02:59]}  c5 {[%clk 0:02:49]} 4. e3 {[%clk 0:02:58]}  b6 {[%clk 0:02:50]} 5. Nc3 {[%clk 0:02:46]}  Bb7 {[%clk 0:02:42]} 6. Nb5 {[%clk 0:02:44]}  Na6 {[%clk 0:02:42]} 7. Nd6+ {[%clk 0:02:01]}  Bxd6 {[%clk 0:02:42]} 8. Bxd6 {[%clk 0:02:02]}  Ne4 {[%clk 0:02:43]} 9. Bf4 {[%clk 0:02:00]}  O-O {[%clk 0:02:37]} 10. c3 {[%clk 0:02:00]}  d6 {[%clk 0:02:32]} 11. Bd3 {[%clk 0:01:55]}  Qe7 {[%clk 0:02:00]} 12. O-O {[%clk 0:01:47]}  Nc7 {[%clk 0:01:50]} 13. Bxe4 {[%clk 0:01:25]}  Bxe4 {[%clk 0:01:28]} 14. dxc5 {[%clk 0:01:25]}  dxc5 {[%clk 0:01:29]} 15. Bd6 {[%clk 0:01:25]}  Qd8 {[%clk 0:01:24]} 16. Bxf8 {[%clk 0:01:24]}  Qxf8 {[%clk 0:01:25]} 17. Qe2 {[%clk 0:01:13]}  Qe7 {[%clk 0:01:20]} 18. Rfd1 {[%clk 0:01:10]}  e5 {[%clk 0:01:13]} 19. Ne1 {[%clk 0:01:08]}  Bc6 {[%clk 0:01:11]} 20. e4 {[%clk 0:01:08]}  Ne6 {[%clk 0:01:07]} 21. Qe3 {[%clk 0:01:08]}  Ng5 {[%clk 0:00:40]} 22. f3 {[%clk 0:01:06]}  Ne6 {[%clk 0:00:40]} 23. Rd2 {[%clk 0:01:01]}  h5 {[%clk 0:00:37]} 24. Rad1 {[%clk 0:00:57]}  h4 {[%clk 0:00:27]} 25. g3 {[%clk 0:00:55]}  h3 {[%clk 0:00:25]} 26. Nd3 {[%clk 0:00:52]}  Ng5 {[%clk 0:00:24]} 27. Nf2 {[%clk 0:00:30]}  Rc8 {[%clk 0:00:21]} 28. Rd6 {[%clk 0:00:25]}  Ne6 {[%clk 0:00:19]} 29. Nxh3 {[%clk 0:00:23]}  Nd4 {[%clk 0:00:17]} 30. R6xd4 {[%clk 0:00:19]}  cxd4 {[%clk 0:00:15]} 31. cxd4 {[%clk 0:00:19]}  exd4 {[%clk 0:00:13]} 32. Qxd4 {[%clk 0:00:20]}  Qe6 {[%clk 0:00:10]} 33. Nf4 {[%clk 0:00:17]}  Qxa2 {[%clk 0:00:10]} 34. Nh5 {[%clk 0:00:17]}  f6 {[%clk 0:00:09]} 35. Nf4 {[%clk 0:00:15]}  Ba4 {[%clk 0:00:07]} 36. Rd2 {[%clk 0:00:13]}  Bb3 {[%clk 0:00:07]} 37. Qd7 {[%clk 0:00:13]}  Rc1+ {[%clk 0:00:07]} 38. Kg2 {[%clk 0:00:13]}  Bf7 {[%clk 0:00:06]} 39. Qh3 {[%clk 0:00:09]}  Kf8 {[%clk 0:00:02]} 40. Rd8+ {[%clk 0:00:09]}  Be8 {[%clk 0:00:02]} 41. Qh8+ {[%clk 0:00:04]}  Ke7 {[%clk 0:00:02]} 42. Qxe8# {[%clk 0:00:05]} 1-0


[Site "https://www.chess.com"]

[Event "Titled Tuesday Blitz May 16 Late 2023"]
[White "Krzyzanowski, Marcin"]
[Black "Mihajlov, Sebastian"]
[WhiteFideId "1132199"]
[BlackFideId "1512110"]
[WhiteElo "2471"]
[BlackElo "2478"]
[Result "0-1"]
[Round "07"]
[TimeControl "180+2"]
[Date "2023.05.16"]
[WhiteClock "0:00:00"]
[BlackClock "0:00:08"]

1. Nf3 {[%clk 0:03:00]}  Nf6 {[%clk 0:03:00]} 2. c4 {[%clk 0:02:58]}  g6 {[%clk 0:02:59]} 3. d4 {[%clk 0:02:55]}  Bg7 {[%clk 0:03:00]} 4. Nc3 {[%clk 0:02:54]}  d6 {[%clk 0:03:01]} 5. g3 {[%clk 0:02:55]}  O-O {[%clk 0:03:02]} 6. Bg2 {[%clk 0:02:55]}  Nc6 {[%clk 0:03:02]} 7. O-O {[%clk 0:02:56]}  Bf5 {[%clk 0:03:03]} 8. Nh4 {[%clk 0:02:52]}  Bd7 {[%clk 0:03:02]} 9. Nf3 {[%clk 0:02:51]}  Bf5 {[%clk 0:03:02]} 10. Nh4 {[%clk 0:02:47]}  Bd7 {[%clk 0:03:02]} 11. e4 {[%clk 0:02:44]}  e5 {[%clk 0:03:01]} 12. d5 {[%clk 0:02:45]}  Nd4 {[%clk 0:03:00]} 13. h3 {[%clk 0:02:39]}  c5 {[%clk 0:02:58]} 14. dxc6 {[%clk 0:02:32]}  bxc6 {[%clk 0:02:55]} 15. Kh2 {[%clk 0:02:29]}  Be6 {[%clk 0:02:42]} 16. b3 {[%clk 0:02:27]}  d5 {[%clk 0:02:26]} 17. cxd5 {[%clk 0:02:23]}  cxd5 {[%clk 0:02:26]} 18. exd5 {[%clk 0:02:18]}  Nxd5 {[%clk 0:02:26]} 19. Bb2 {[%clk 0:02:14]}  Nxc3 {[%clk 0:02:11]} 20. Bxc3 {[%clk 0:02:15]}  Rc8 {[%clk 0:02:11]} 21. Bb4 {[%clk 0:01:59]}  Re8 {[%clk 0:02:06]} 22. Rc1 {[%clk 0:01:50]}  Qb6 {[%clk 0:01:55]} 23. Qd2 {[%clk 0:01:38]}  Rcd8 {[%clk 0:01:48]} 24. Ba5 {[%clk 0:01:28]}  Nxb3 {[%clk 0:01:14]} 25. Qxd8 {[%clk 0:00:53]}  Qxd8 {[%clk 0:01:14]} 26. Bxd8 {[%clk 0:00:53]}  Nxc1 {[%clk 0:01:15]} 27. Rxc1 {[%clk 0:00:52]}  Rxd8 {[%clk 0:01:15]} 28. Rc7 {[%clk 0:00:47]}  Bxa2 {[%clk 0:01:08]} 29. Rxa7 {[%clk 0:00:47]}  Be6 {[%clk 0:01:09]} 30. Nf3 {[%clk 0:00:46]}  h6 {[%clk 0:01:07]} 31. Ra4 {[%clk 0:00:40]}  f5 {[%clk 0:00:53]} 32. Ra6 {[%clk 0:00:33]}  Bf7 {[%clk 0:00:51]} 33. Nh4 {[%clk 0:00:33]}  Kh7 {[%clk 0:00:45]} 34. Ra7 {[%clk 0:00:33]}  Rf8 {[%clk 0:00:40]} 35. g4 {[%clk 0:00:31]}  Bf6 {[%clk 0:00:36]} 36. Bd5 {[%clk 0:00:15]}  Bxh4 {[%clk 0:00:33]} 37. Bxf7 {[%clk 0:00:15]}  Bxf2 {[%clk 0:00:32]} 38. Rb7 {[%clk 0:00:15]}  e4 {[%clk 0:00:20]} 39. Kg2 {[%clk 0:00:14]}  Bh4 {[%clk 0:00:18]} 40. gxf5 {[%clk 0:00:12]}  gxf5 {[%clk 0:00:18]} 41. Bh5+ {[%clk 0:00:13]}  Kh8 {[%clk 0:00:14]} 42. Bg6 {[%clk 0:00:13]}  Bg5 {[%clk 0:00:13]} 43. Rb5 {[%clk 0:00:09]}  e3 {[%clk 0:00:09]} 44. Kf3 {[%clk 0:00:03]}  f4 {[%clk 0:00:07]} 45. Rb7 {[%clk 0:00:03]}  Rc8 {[%clk 0:00:06]} 46. h4 {[%clk 0:00:01]}  Bxh4 {[%clk 0:00:06]} 47. Rh7+ {[%clk 0:00:02]}  Kg8 {[%clk 0:00:06]} 48. Rxh6 {[%clk 0:00:03]}  Bg3 {[%clk 0:00:04]} 49. Be4 {[%clk 0:00:02]}  Rc1 {[%clk 0:00:05]} 50. Rg6+ {[%clk 0:00:01]}  Kf8 {[%clk 0:00:05]} 51. Ra6 {[%clk 0:00:02]}  Rf1+ {[%clk 0:00:04]} 52. Ke2 {[%clk 0:00:02]}  Rf2+ {[%clk 0:00:05]} 53. Kd3 {[%clk 0:00:02]}  Rd2+ {[%clk 0:00:05]} 54. Kc3 {[%clk 0:00:02]}  e2 {[%clk 0:00:05]} 55. Ra1 {[%clk 0:00:01]}  e1=Q {[%clk 0:00:04]} 56. Rxe1 {[%clk 0:00:01]}  Bxe1 {[%clk 0:00:05]} 57. Kc4 {[%clk 0:00:01]}  Re2 {[%clk 0:00:05]} 58. Bd3 {[%clk 0:00:01]}  Re3 {[%clk 0:00:06]} 59. Kd4 {[%clk 0:00:01]}  Ke7 {[%clk 0:00:07]} 60. Bc4 {[%clk 0:00:01]}  Bg3 {[%clk 0:00:08]} 61. Bd5 {[%clk 0:00:02]}  Kf6 {[%clk 0:00:09]} 62. Be4 {[%clk 0:00:02]}  Kg5 {[%clk 0:00:08]} 63. Ke5 {[%clk 0:00:02]}  f3+ {[%clk 0:00:08]} 64. Kd4 {[%clk 0:00:00]}  Kf4 {[%clk 0:00:08]} 0-1


[Site "https://www.chess.com"]

[Event "Titled Tuesday Blitz May 16 Late 2023"]
[White "Riehle, Marco"]
[Black "Martinez Alcantara, Jose Eduardo"]
[WhiteFideId "12904392"]
[BlackFideId "3805662"]
[WhiteElo "2462"]
[BlackElo "2711"]
[Result "1/2-1/2"]
[Round "07"]
[TimeControl "180+2"]
[Date "2023.05.16"]
[WhiteClock "0:00:08"]
[BlackClock "0:00:17"]

1. e4 {[%clk 0:02:59]}  c5 {[%clk 0:03:00]} 2. a3 {[%clk 0:02:59]}  e6 {[%clk 0:03:00]} 3. b4 {[%clk 0:02:59]}  d5 {[%clk 0:03:01]} 4. exd5 {[%clk 0:02:59]}  exd5 {[%clk 0:03:00]} 5. Nf3 {[%clk 0:03:00]}  Nc6 {[%clk 0:02:59]} 6. c3 {[%clk 0:02:56]}  Nf6 {[%clk 0:02:59]} 7. d4 {[%clk 0:02:53]}  cxd4 {[%clk 0:02:57]} 8. Nxd4 {[%clk 0:02:53]}  Bd6 {[%clk 0:02:56]} 9. Nxc6 {[%clk 0:02:51]}  bxc6 {[%clk 0:02:55]} 10. Bd3 {[%clk 0:02:51]}  O-O {[%clk 0:02:54]} 11. O-O {[%clk 0:02:51]}  Ng4 {[%clk 0:02:37]} 12. h3 {[%clk 0:02:45]}  Qh4 {[%clk 0:02:37]} 13. Bc2 {[%clk 0:02:27]}  Ne5 {[%clk 0:02:09]} 14. Qd4 {[%clk 0:02:21]}  Qxd4 {[%clk 0:01:49]} 15. cxd4 {[%clk 0:02:22]}  Nc4 {[%clk 0:01:50]} 16. Nd2 {[%clk 0:02:17]}  a5 {[%clk 0:01:38]} 17. Nxc4 {[%clk 0:02:16]}  dxc4 {[%clk 0:01:39]} 18. Bd2 {[%clk 0:02:07]}  axb4 {[%clk 0:01:38]} 19. Bxb4 {[%clk 0:02:08]}  Bxb4 {[%clk 0:01:37]} 20. axb4 {[%clk 0:02:09]}  Rb8 {[%clk 0:01:38]} 21. Rab1 {[%clk 0:02:04]}  g6 {[%clk 0:01:38]} 22. Be4 {[%clk 0:01:59]}  Rd8 {[%clk 0:01:37]} 23. Bxc6 {[%clk 0:01:57]}  Bf5 {[%clk 0:01:38]} 24. Rbc1 {[%clk 0:01:52]}  Rxb4 {[%clk 0:01:31]} 25. d5 {[%clk 0:01:52]}  Bd3 {[%clk 0:01:17]} 26. Rfe1 {[%clk 0:01:49]}  Kf8 {[%clk 0:01:15]} 27. Kh2 {[%clk 0:01:41]}  Rb3 {[%clk 0:01:12]} 28. Re3 {[%clk 0:01:38]}  Rb2 {[%clk 0:01:05]} 29. Kg3 {[%clk 0:01:37]}  h6 {[%clk 0:01:02]} 30. Rce1 {[%clk 0:01:35]}  Kg7 {[%clk 0:00:54]} 31. Rf3 {[%clk 0:01:34]}  Kf8 {[%clk 0:00:42]} 32. Rfe3 {[%clk 0:01:31]}  Kg7 {[%clk 0:00:42]} 33. Rf3 {[%clk 0:01:30]}  Kf8 {[%clk 0:00:42]} 34. Ra1 {[%clk 0:01:23]}  Be4 {[%clk 0:00:33]} 35. Rf4 {[%clk 0:01:16]}  Bxd5 {[%clk 0:00:21]} 36. Rd1 {[%clk 0:01:03]}  Rb3+ {[%clk 0:00:21]} 37. f3 {[%clk 0:01:03]}  g5 {[%clk 0:00:12]} 38. Rf5 {[%clk 0:00:53]}  Bxc6 {[%clk 0:00:07]} 39. Rxd8+ {[%clk 0:00:53]}  Ke7 {[%clk 0:00:07]} 40. Rd4 {[%clk 0:00:52]}  Bd7 {[%clk 0:00:06]} 41. Re5+ {[%clk 0:00:46]}  Kf6 {[%clk 0:00:07]} 42. Rc5 {[%clk 0:00:41]}  Be6 {[%clk 0:00:07]} 43. Rd6 {[%clk 0:00:41]}  Kg7 {[%clk 0:00:07]} 44. Rc7 {[%clk 0:00:41]}  Kg8 {[%clk 0:00:04]} 45. h4 {[%clk 0:00:39]}  Rb2 {[%clk 0:00:04]} 46. hxg5 {[%clk 0:00:38]}  hxg5 {[%clk 0:00:05]} 47. Rc5 {[%clk 0:00:38]}  g4 {[%clk 0:00:05]} 48. fxg4 {[%clk 0:00:36]}  Kf8 {[%clk 0:00:06]} 49. Rc7 {[%clk 0:00:34]}  Re2 {[%clk 0:00:04]} 50. g5 {[%clk 0:00:34]}  Re5 {[%clk 0:00:05]} 51. Kh4 {[%clk 0:00:19]}  Re4+ {[%clk 0:00:05]} 52. Kh5 {[%clk 0:00:15]}  Kg7 {[%clk 0:00:05]} 53. g6 {[%clk 0:00:14]}  Re5+ {[%clk 0:00:05]} 54. Kh4 {[%clk 0:00:14]}  Kxg6 {[%clk 0:00:06]} 55. Rxc4 {[%clk 0:00:13]}  Kf6 {[%clk 0:00:01]} 56. Ra4 {[%clk 0:00:11]}  Ke7 {[%clk 0:00:02]} 57. Rb6 {[%clk 0:00:11]}  Re1 {[%clk 0:00:02]} 58. Kg3 {[%clk 0:00:11]}  Kf6 {[%clk 0:00:03]} 59. Rf4+ {[%clk 0:00:11]}  Ke7 {[%clk 0:00:04]} 60. Rf2 {[%clk 0:00:11]}  Re3+ {[%clk 0:00:04]} 61. Rf3 {[%clk 0:00:12]}  Re5 {[%clk 0:00:05]} 62. Rb7+ {[%clk 0:00:11]}  Kf8 {[%clk 0:00:04]} 63. Ra7 {[%clk 0:00:10]}  Kg7 {[%clk 0:00:04]} 64. Kf2 {[%clk 0:00:10]}  Rc5 {[%clk 0:00:04]} 65. Rg3+ {[%clk 0:00:10]}  Kf6 {[%clk 0:00:05]} 66. Rf3+ {[%clk 0:00:11]}  Kg7 {[%clk 0:00:06]} 67. Re3 {[%clk 0:00:11]}  Kf6 {[%clk 0:00:06]} 68. g3 {[%clk 0:00:12]}  Rc2+ {[%clk 0:00:06]} 69. Kf3 {[%clk 0:00:12]}  Bd5+ {[%clk 0:00:07]} 70. Kg4 {[%clk 0:00:08]}  Rc4+ {[%clk 0:00:07]} 71. Kh3 {[%clk 0:00:09]}  Be6+ {[%clk 0:00:07]} 72. Kg2 {[%clk 0:00:09]}  Rc2+ {[%clk 0:00:07]} 73. Kg1 {[%clk 0:00:09]}  Bd5 {[%clk 0:00:07]} 74. Kf1 {[%clk 0:00:07]}  Rb2 {[%clk 0:00:07]} 75. Rc7 {[%clk 0:00:07]}  Be6 {[%clk 0:00:05]} 76. Re2 {[%clk 0:00:06]}  Rb3 {[%clk 0:00:05]} 77. Kf2 {[%clk 0:00:07]}  Bd5 {[%clk 0:00:05]} 78. Re3 {[%clk 0:00:05]}  Rb2+ {[%clk 0:00:06]} 79. Re2 {[%clk 0:00:05]}  Rb3 {[%clk 0:00:06]} 80. Re3 {[%clk 0:00:06]}  Rb2+ {[%clk 0:00:07]} 81. Ke1 {[%clk 0:00:06]}  Be6 {[%clk 0:00:06]} 82. Rc1 {[%clk 0:00:05]}  Ra2 {[%clk 0:00:06]} 83. Rd1 {[%clk 0:00:06]}  Rh2 {[%clk 0:00:06]} 84. Rd2 {[%clk 0:00:04]}  Rh1+ {[%clk 0:00:06]} 85. Ke2 {[%clk 0:00:04]}  Ra1 {[%clk 0:00:07]} 86. Kf3 {[%clk 0:00:04]}  Ra4 {[%clk 0:00:08]} 87. Kf2 {[%clk 0:00:04]}  Ra1 {[%clk 0:00:07]} 88. Rf3+ {[%clk 0:00:04]}  Ke7 {[%clk 0:00:08]} 89. Re3 {[%clk 0:00:04]}  Ra4 {[%clk 0:00:08]} 90. Rf3 {[%clk 0:00:04]}  Ra1 {[%clk 0:00:08]} 91. Rf4 {[%clk 0:00:05]}  Ra3 {[%clk 0:00:07]} 92. g4 {[%clk 0:00:05]}  Ra5 {[%clk 0:00:08]} 93. Re2 {[%clk 0:00:05]}  Rg5 {[%clk 0:00:08]} 94. Kg3 {[%clk 0:00:06]}  Ra5 {[%clk 0:00:09]} 95. Kh4 {[%clk 0:00:06]}  Ra1 {[%clk 0:00:09]} 96. Rh2 {[%clk 0:00:05]}  Ra5 {[%clk 0:00:09]} 97. g5 {[%clk 0:00:05]}  Ra8 {[%clk 0:00:10]} 98. Kg3 {[%clk 0:00:05]}  Ra5 {[%clk 0:00:10]} 99. Kh4 {[%clk 0:00:05]}  Ra8 {[%clk 0:00:10]} 100. Kg3 {[%clk 0:00:06]}  Ra5 {[%clk 0:00:10]} 101. Rh5 {[%clk 0:00:06]}  Ra3+ {[%clk 0:00:11]} 102. Rf3 {[%clk 0:00:05]}  Ra4 {[%clk 0:00:11]} 103. Kf2 {[%clk 0:00:05]}  Bg4 {[%clk 0:00:09]} 104. Re3+ {[%clk 0:00:05]}  Be6 {[%clk 0:00:10]} 105. g6 {[%clk 0:00:04]}  fxg6 {[%clk 0:00:09]} 106. Rb5 {[%clk 0:00:04]}  Ra6 {[%clk 0:00:09]} 107. Kg3 {[%clk 0:00:04]}  Kf6 {[%clk 0:00:09]} 108. Rb4 {[%clk 0:00:04]}  Bf5 {[%clk 0:00:10]} 109. Rf4 {[%clk 0:00:05]}  Kg5 {[%clk 0:00:10]} 110. Rb4 {[%clk 0:00:05]}  Ra1 {[%clk 0:00:10]} 111. Kf2 {[%clk 0:00:05]}  Ra2+ {[%clk 0:00:11]} 112. Re2 {[%clk 0:00:05]}  Ra8 {[%clk 0:00:12]} 113. Re3 {[%clk 0:00:05]}  Rh8 {[%clk 0:00:12]} 114. Rg3+ {[%clk 0:00:05]}  Kf6 {[%clk 0:00:13]} 115. Rb6+ {[%clk 0:00:06]}  Ke5 {[%clk 0:00:13]} 116. Re3+ {[%clk 0:00:06]}  Kf4 {[%clk 0:00:14]} 117. Rb4+ {[%clk 0:00:07]}  Kg5 {[%clk 0:00:14]} 118. Rg3+ {[%clk 0:00:07]}  Kf6 {[%clk 0:00:15]} 119. Rb6+ {[%clk 0:00:07]}  Kf7 {[%clk 0:00:16]} 120. Rb7+ {[%clk 0:00:07]}  Kf6 {[%clk 0:00:17]} 121. Rb6+ {[%clk 0:00:08]} 1/2-1/2


[Site "https://www.chess.com"]

[Event "Titled Tuesday Blitz May 16 Late 2023"]
[White "Zhigalko, Sergei"]
[Black "Milikow, Yoav"]
[WhiteFideId "13502956"]
[BlackFideId "2822237"]
[WhiteElo "2626"]
[BlackElo "2410"]
[Result "1-0"]
[Round "07"]
[TimeControl "180+2"]
[Date "2023.05.16"]
[WhiteClock "0:00:02"]
[BlackClock "0:00:03"]

1. e4 {[%clk 0:03:00]}  e5 {[%clk 0:02:58]} 2. Nf3 {[%clk 0:03:01]}  Nc6 {[%clk 0:02:56]} 3. Bc4 {[%clk 0:03:01]}  Nf6 {[%clk 0:02:54]} 4. d3 {[%clk 0:03:00]}  Bc5 {[%clk 0:02:54]} 5. O-O {[%clk 0:03:00]}  d6 {[%clk 0:02:54]} 6. c3 {[%clk 0:03:00]}  a5 {[%clk 0:02:53]} 7. Nbd2 {[%clk 0:02:59]}  O-O {[%clk 0:02:53]} 8. h3 {[%clk 0:02:56]}  Be6 {[%clk 0:02:52]} 9. Bb5 {[%clk 0:02:55]}  Qb8 {[%clk 0:02:49]} 10. Bxc6 {[%clk 0:02:41]}  bxc6 {[%clk 0:02:50]} 11. d4 {[%clk 0:02:42]}  exd4 {[%clk 0:02:47]} 12. cxd4 {[%clk 0:02:43]}  Bb6 {[%clk 0:02:40]} 13. Qc2 {[%clk 0:02:15]}  Bd7 {[%clk 0:01:54]} 14. b3 {[%clk 0:01:35]}  h6 {[%clk 0:01:45]} 15. Bb2 {[%clk 0:01:32]}  Re8 {[%clk 0:01:38]} 16. Rfe1 {[%clk 0:00:56]}  Qc8 {[%clk 0:01:17]} 17. Nc4 {[%clk 0:00:37]}  Rxe4 {[%clk 0:00:43]} 18. Rxe4 {[%clk 0:00:31]}  Bf5 {[%clk 0:00:44]} 19. Nfd2 {[%clk 0:00:12]}  d5 {[%clk 0:00:34]} 20. f3 {[%clk 0:00:11]}  dxe4 {[%clk 0:00:33]} 21. fxe4 {[%clk 0:00:12]}  Bh7 {[%clk 0:00:30]} 22. Nxb6 {[%clk 0:00:07]}  cxb6 {[%clk 0:00:31]} 23. Re1 {[%clk 0:00:06]}  a4 {[%clk 0:00:24]} 24. Qc3 {[%clk 0:00:04]}  Qe6 {[%clk 0:00:19]} 25. Qg3 {[%clk 0:00:03]}  Bg6 {[%clk 0:00:17]} 26. d5 {[%clk 0:00:01]}  cxd5 {[%clk 0:00:15]} 27. exd5 {[%clk 0:00:02]}  Qxd5 {[%clk 0:00:14]} 28. Nc4 {[%clk 0:00:03]}  b5 {[%clk 0:00:11]} 29. Ne3 {[%clk 0:00:02]}  Qd2 {[%clk 0:00:10]} 30. Bxf6 {[%clk 0:00:02]}  gxf6 {[%clk 0:00:10]} 31. Ng4 {[%clk 0:00:02]}  Kg7 {[%clk 0:00:09]} 32. Kh2 {[%clk 0:00:01]}  axb3 {[%clk 0:00:09]} 33. axb3 {[%clk 0:00:02]}  Ra2 {[%clk 0:00:05]} 34. Ne3 {[%clk 0:00:02]}  Kh7 {[%clk 0:00:05]} 35. Rf1 {[%clk 0:00:03]}  Qd4 {[%clk 0:00:04]} 36. Ng4 {[%clk 0:00:02]}  f5 {[%clk 0:00:03]} 37. Rf4 {[%clk 0:00:03]}  Qg7 {[%clk 0:00:03]} 38. Ne3 {[%clk 0:00:03]}  Ra6 {[%clk 0:00:02]} 39. Nxf5 {[%clk 0:00:03]}  Bxf5 {[%clk 0:00:03]} 40. Rxf5 {[%clk 0:00:03]}  Rg6 {[%clk 0:00:03]} 41. Qf3 {[%clk 0:00:03]}  Kg8 {[%clk 0:00:03]} 42. Rxb5 {[%clk 0:00:02]}  Qd4 {[%clk 0:00:03]} 43. Rf5 {[%clk 0:00:02]}  Qd6+ {[%clk 0:00:03]} 44. Qf4 {[%clk 0:00:02]}  Qc6 {[%clk 0:00:03]} 45. Qf3 {[%clk 0:00:02]}  Qd6+ {[%clk 0:00:03]} 46. Kh1 {[%clk 0:00:02]}  Qe6 {[%clk 0:00:03]} 47. Rf4 {[%clk 0:00:02]}  Qe1+ {[%clk 0:00:03]} 48. Kh2 {[%clk 0:00:03]}  Qe5 {[%clk 0:00:04]} 49. Qf2 {[%clk 0:00:02]}  Kh7 {[%clk 0:00:02]} 50. h4 {[%clk 0:00:01]}  Kg8 {[%clk 0:00:02]} 51. g3 {[%clk 0:00:02]}  f6 {[%clk 0:00:02]} 52. Rf5 {[%clk 0:00:02]}  Qd6 {[%clk 0:00:02]} 53. Rf3 {[%clk 0:00:02]}  Qe5 {[%clk 0:00:02]} 54. Qe3 {[%clk 0:00:02]}  Qd5 {[%clk 0:00:02]} 55. Qd3 {[%clk 0:00:02]}  Qf7 {[%clk 0:00:02]} 56. Qf5 {[%clk 0:00:02]}  Kg7 {[%clk 0:00:03]} 57. Kh3 {[%clk 0:00:02]}  Qe7 {[%clk 0:00:03]} 58. Qf4 {[%clk 0:00:02]}  Qe1 {[%clk 0:00:04]} 59. Rf2 {[%clk 0:00:02]}  Qe6+ {[%clk 0:00:04]} 60. Kh2 {[%clk 0:00:02]}  Qxb3 {[%clk 0:00:05]} 61. Rd2 {[%clk 0:00:02]}  Qf7 {[%clk 0:00:05]} 62. Rc2 {[%clk 0:00:02]}  Kh7 {[%clk 0:00:03]} 63. Rc7 {[%clk 0:00:02]} 1-0


[Site "https://www.chess.com"]

[Event "Titled Tuesday Blitz May 16 Late 2023"]
[White "Nazari, Arad"]
[Black "Grigoriants, Sergey"]
[WhiteFideId "12577324"]
[BlackFideId "4130804"]
[WhiteElo "2175"]
[BlackElo "2502"]
[Result "0-1"]
[Round "07"]
[TimeControl "180+2"]
[Date "2023.05.16"]
[WhiteClock "0:00:00"]
[BlackClock "0:00:03"]

1. e4 {[%clk 0:02:41]}  e5 {[%clk 0:02:54]} 2. f4 {[%clk 0:02:41]}  exf4 {[%clk 0:02:50]} 3. Nf3 {[%clk 0:02:42]}  Ne7 {[%clk 0:02:49]} 4. d4 {[%clk 0:02:26]}  d5 {[%clk 0:02:49]} 5. Bd3 {[%clk 0:02:23]}  dxe4 {[%clk 0:02:40]} 6. Bxe4 {[%clk 0:02:24]}  Ng6 {[%clk 0:02:40]} 7. Qe2 {[%clk 0:02:25]}  Be7 {[%clk 0:02:38]} 8. h4 {[%clk 0:02:25]}  h5 {[%clk 0:02:31]} 9. Bxg6 {[%clk 0:02:20]}  fxg6 {[%clk 0:02:31]} 10. Bxf4 {[%clk 0:02:20]}  O-O {[%clk 0:02:28]} 11. Qc4+ {[%clk 0:02:20]}  Kh7 {[%clk 0:02:17]} 12. Qxc7 {[%clk 0:02:13]}  Qxc7 {[%clk 0:02:02]} 13. Bxc7 {[%clk 0:02:14]}  Nc6 {[%clk 0:02:03]} 14. c3 {[%clk 0:01:52]}  Bg4 {[%clk 0:02:01]} 15. Nbd2 {[%clk 0:01:51]}  b5 {[%clk 0:01:45]} 16. O-O-O {[%clk 0:00:55]}  Nb4 {[%clk 0:01:33]} 17. Ne4 {[%clk 0:00:25]}  Rac8 {[%clk 0:01:14]} 18. Bd6 {[%clk 0:00:21]}  Nxa2+ {[%clk 0:00:51]} 19. Kb1 {[%clk 0:00:16]}  Bxd6 {[%clk 0:00:52]} 20. Nxd6 {[%clk 0:00:16]}  Rc6 {[%clk 0:00:52]} 21. Ng5+ {[%clk 0:00:15]}  Kg8 {[%clk 0:00:51]} 22. Nxb5 {[%clk 0:00:10]}  Bxd1 {[%clk 0:00:42]} 23. Rxd1 {[%clk 0:00:10]}  Rb8 {[%clk 0:00:36]} 24. d5 {[%clk 0:00:05]}  Rxb5 {[%clk 0:00:30]} 25. Kxa2 {[%clk 0:00:02]}  Rcc5 {[%clk 0:00:09]} 26. d6 {[%clk 0:00:03]}  Rd5 {[%clk 0:00:09]} 27. Re1 {[%clk 0:00:04]}  Rb8 {[%clk 0:00:09]} 28. Re6 {[%clk 0:00:03]}  Rd8 {[%clk 0:00:08]} 29. Rxg6 {[%clk 0:00:04]}  R8xd6 {[%clk 0:00:06]} 30. Rxd6 {[%clk 0:00:03]}  Rxd6 {[%clk 0:00:07]} 31. Kb3 {[%clk 0:00:03]}  Rd2 {[%clk 0:00:07]} 32. g3 {[%clk 0:00:03]}  Rd3 {[%clk 0:00:07]} 33. Ne4 {[%clk 0:00:03]}  Re3 {[%clk 0:00:07]} 34. Nd6 {[%clk 0:00:04]}  Rxg3 {[%clk 0:00:07]} 35. Nf5 {[%clk 0:00:02]}  Rg4 {[%clk 0:00:07]} 36. c4 {[%clk 0:00:03]}  Kf7 {[%clk 0:00:06]} 37. c5 {[%clk 0:00:03]}  Ke6 {[%clk 0:00:06]} 38. c6 {[%clk 0:00:02]}  g6 {[%clk 0:00:04]} 39. c7 {[%clk 0:00:02]}  Kd7 {[%clk 0:00:04]} 40. Ne7 {[%clk 0:00:00]}  Kxc7 {[%clk 0:00:03]} 0-1


[Site "https://www.chess.com"]